[Event "Titled Tuesday Blitz June 21 Late 2022"]
[White "Arabidze, Meri"]
[Black "D`Arruda, Ricardo D."]
[WhiteFideId "13604040"]
[BlackFideId "100692"]
[WhiteElo "2616"]
[BlackElo "2498"]
[Result "0-1"]
[Round "05"]
[TimeControl "180+1"]
[Date "2022.06.22"]
[WhiteClock "0:00:03"]
[BlackClock "0:00:16"]

1. Nf3 {[%clk 0:02:55]}  d5 {[%clk 0:02:55]} 2. g3 {[%clk 0:02:55]}  Nf6 {[%clk 0:02:54]} 3. Bg2 {[%clk 0:02:56]}  g6 {[%clk 0:02:53]} 4. b3 {[%clk 0:02:54]}  Bg7 {[%clk 0:02:53]} 5. Bb2 {[%clk 0:02:55]}  O-O {[%clk 0:02:54]} 6. c4 {[%clk 0:02:54]}  c6 {[%clk 0:02:53]} 7. O-O {[%clk 0:02:53]}  Nbd7 {[%clk 0:02:52]} 8. d4 {[%clk 0:02:47]}  Ne4 {[%clk 0:02:51]} 9. Nbd2 {[%clk 0:02:46]}  Ndf6 {[%clk 0:02:48]} 10. e3 {[%clk 0:02:45]}  Bf5 {[%clk 0:02:43]} 11. Nh4 {[%clk 0:02:33]}  Nxd2 {[%clk 0:02:42]} 12. Qxd2 {[%clk 0:02:33]}  Be6 {[%clk 0:02:37]} 13. f4 {[%clk 0:02:30]}  Qd7 {[%clk 0:02:24]} 14. Rac1 {[%clk 0:02:20]}  Bh3 {[%clk 0:02:11]} 15. Bxh3 {[%clk 0:02:05]}  Qxh3 {[%clk 0:02:12]} 16. cxd5 {[%clk 0:02:05]}  cxd5 {[%clk 0:02:08]} 17. Rc7 {[%clk 0:02:01]}  Rac8 {[%clk 0:01:35]} 18. Rxb7 {[%clk 0:01:42]}  Ne4 {[%clk 0:01:33]} 19. Qe2 {[%clk 0:01:39]}  Rc6 {[%clk 0:01:19]} 20. Ba3 {[%clk 0:00:56]}  Rfc8 {[%clk 0:01:18]} 21. Qg2 {[%clk 0:00:52]}  Qg4 {[%clk 0:01:12]} 22. h3 {[%clk 0:00:31]}  Qxg3 {[%clk 0:01:11]} 23. Qxg3 {[%clk 0:00:31]}  Nxg3 {[%clk 0:01:12]} 24. Rf2 {[%clk 0:00:31]}  Ne4 {[%clk 0:01:11]} 25. Rg2 {[%clk 0:00:29]}  Rc3 {[%clk 0:01:04]} 26. Bxe7 {[%clk 0:00:23]}  Rxe3 {[%clk 0:01:03]} 27. Bc5 {[%clk 0:00:19]}  Nxc5 {[%clk 0:00:56]} 28. dxc5 {[%clk 0:00:19]}  Bd4 {[%clk 0:00:30]} 29. Kh2 {[%clk 0:00:17]}  Re4 {[%clk 0:00:21]} 30. Nf5 {[%clk 0:00:15]}  Bxc5 {[%clk 0:00:21]} 31. Nh6+ {[%clk 0:00:14]}  Kg7 {[%clk 0:00:19]} 32. Nxf7 {[%clk 0:00:14]}  Re7 {[%clk 0:00:19]} 33. Rxe7 {[%clk 0:00:13]}  Bxe7 {[%clk 0:00:20]} 34. Ne5 {[%clk 0:00:13]}  Bd6 {[%clk 0:00:19]} 35. Rd2 {[%clk 0:00:12]}  Bxe5 {[%clk 0:00:19]} 36. fxe5 {[%clk 0:00:13]}  Rd8 {[%clk 0:00:19]} 37. Kg3 {[%clk 0:00:13]}  Kf7 {[%clk 0:00:20]} 38. Kf4 {[%clk 0:00:13]}  Ke6 {[%clk 0:00:21]} 39. h4 {[%clk 0:00:10]}  Rf8+ {[%clk 0:00:21]} 40. Kg5 {[%clk 0:00:10]}  Kxe5 {[%clk 0:00:21]} 41. Kh6 {[%clk 0:00:09]}  Rf4 {[%clk 0:00:21]} 42. Kxh7 {[%clk 0:00:09]}  Rxh4+ {[%clk 0:00:21]} 43. Kxg6 {[%clk 0:00:09]}  d4 {[%clk 0:00:22]} 44. Kf7 {[%clk 0:00:08]}  Ke4 {[%clk 0:00:21]} 45. Ke6 {[%clk 0:00:08]}  Ke3 {[%clk 0:00:21]} 46. Rd1 {[%clk 0:00:07]}  d3 {[%clk 0:00:21]} 47. Kd5 {[%clk 0:00:05]}  Ke2 {[%clk 0:00:21]} 48. Ra1 {[%clk 0:00:05]}  d2 {[%clk 0:00:22]} 49. Kc5 {[%clk 0:00:05]}  Rh3 {[%clk 0:00:20]} 50. a4 {[%clk 0:00:02]}  Rc3+ {[%clk 0:00:19]} 51. Kb4 {[%clk 0:00:02]}  Rc1 {[%clk 0:00:19]} 52. Ra2 {[%clk 0:00:02]}  Kd3 {[%clk 0:00:20]} 53. Rxd2+ {[%clk 0:00:02]}  Kxd2 {[%clk 0:00:21]} 54. Ka5 {[%clk 0:00:01]}  Rb1 {[%clk 0:00:20]} 55. b4 {[%clk 0:00:02]}  Kc3 {[%clk 0:00:19]} 56. b5 {[%clk 0:00:02]}  Ra1 {[%clk 0:00:17]} 57. Ka6 {[%clk 0:00:01]}  Rxa4+ {[%clk 0:00:15]} 58. Kb7 {[%clk 0:00:02]}  Kb4 {[%clk 0:00:15]} 59. b6 {[%clk 0:00:02]}  axb6 {[%clk 0:00:15]} 60. Kxb6 {[%clk 0:00:03]}  Ra5 {[%clk 0:00:16]} 0-1


[Site "https://www.chess.com"]

[Event "Titled Tuesday Blitz June 21 Late 2022"]
[White "Bayo Milagro, Alvaro"]
[Black "Peatman, Carter"]
[WhiteFideId "22275240"]
[BlackFideId "2096480"]
[WhiteElo "2270"]
[BlackElo "2473"]
[Result "1-0"]
[Round "05"]
[TimeControl "180+1"]
[Date "2022.06.22"]
[WhiteClock "0:00:39"]
[BlackClock "0:00:05"]

1. d4 {[%clk 0:02:53]}  d5 {[%clk 0:02:42]} 2. c4 {[%clk 0:02:53]}  e6 {[%clk 0:02:41]} 3. Nf3 {[%clk 0:02:54]}  c5 {[%clk 0:02:39]} 4. cxd5 {[%clk 0:02:53]}  exd5 {[%clk 0:02:35]} 5. g3 {[%clk 0:02:54]}  Nc6 {[%clk 0:02:34]} 6. Bg2 {[%clk 0:02:55]}  Nf6 {[%clk 0:02:34]} 7. O-O {[%clk 0:02:55]}  Be7 {[%clk 0:02:33]} 8. dxc5 {[%clk 0:02:56]}  Bxc5 {[%clk 0:02:33]} 9. a3 {[%clk 0:02:56]}  Ne4 {[%clk 0:02:26]} 10. b4 {[%clk 0:02:53]}  Be7 {[%clk 0:02:17]} 11. Bb2 {[%clk 0:02:52]}  Bf6 {[%clk 0:02:09]} 12. Qb3 {[%clk 0:02:51]}  O-O {[%clk 0:02:01]} 13. Nc3 {[%clk 0:02:50]}  Be6 {[%clk 0:01:56]} 14. Nb5 {[%clk 0:02:47]}  a6 {[%clk 0:01:41]} 15. Bxf6 {[%clk 0:02:37]}  Qxf6 {[%clk 0:01:31]} 16. Nc7 {[%clk 0:02:37]}  Rad8 {[%clk 0:01:21]} 17. Nxe6 {[%clk 0:02:36]}  fxe6 {[%clk 0:01:22]} 18. Rfd1 {[%clk 0:02:27]}  g5 {[%clk 0:01:16]} 19. h3 {[%clk 0:02:26]}  h5 {[%clk 0:01:14]} 20. g4 {[%clk 0:02:11]}  hxg4 {[%clk 0:01:12]} 21. hxg4 {[%clk 0:02:12]}  Ne5 {[%clk 0:01:01]} 22. Bh3 {[%clk 0:01:52]}  Nxf3+ {[%clk 0:00:41]} 23. exf3 {[%clk 0:01:49]}  Qxf3 {[%clk 0:00:40]} 24. Qxf3 {[%clk 0:01:50]}  Rxf3 {[%clk 0:00:40]} 25. Bg2 {[%clk 0:01:50]}  Rf4 {[%clk 0:00:36]} 26. Bxe4 {[%clk 0:01:46]}  Rxe4 {[%clk 0:00:34]} 27. f3 {[%clk 0:01:47]}  Rf4 {[%clk 0:00:34]} 28. Kg2 {[%clk 0:01:46]}  Rdf8 {[%clk 0:00:32]} 29. Re1 {[%clk 0:01:41]}  R8f6 {[%clk 0:00:27]} 30. Re3 {[%clk 0:01:40]}  Rc4 {[%clk 0:00:23]} 31. Rae1 {[%clk 0:01:36]}  Kf7 {[%clk 0:00:24]} 32. R1e2 {[%clk 0:01:30]}  b6 {[%clk 0:00:22]} 33. Rb3 {[%clk 0:01:19]}  b5 {[%clk 0:00:19]} 34. Rbe3 {[%clk 0:01:19]}  Rc6 {[%clk 0:00:18]} 35. Kg3 {[%clk 0:01:15]}  Rf4 {[%clk 0:00:18]} 36. Re5 {[%clk 0:01:13]}  Kf6 {[%clk 0:00:16]} 37. R5e3 {[%clk 0:01:01]}  d4 {[%clk 0:00:14]} 38. Rd3 {[%clk 0:00:58]}  e5 {[%clk 0:00:13]} 39. Rh2 {[%clk 0:00:57]}  Kg7 {[%clk 0:00:12]} 40. Rh5 {[%clk 0:00:57]}  Kg6 {[%clk 0:00:11]} 41. Rh8 {[%clk 0:00:57]}  Rff6 {[%clk 0:00:10]} 42. Rg8+ {[%clk 0:00:56]}  Kh6 {[%clk 0:00:09]} 43. Rd1 {[%clk 0:00:52]}  Kh7 {[%clk 0:00:05]} 44. Rxg5 {[%clk 0:00:51]}  Rg6 {[%clk 0:00:05]} 45. Rxe5 {[%clk 0:00:50]}  Rc3 {[%clk 0:00:05]} 46. Rxd4 {[%clk 0:00:48]}  Rf6 {[%clk 0:00:05]} 47. Rf4 {[%clk 0:00:43]}  Rxf4 {[%clk 0:00:04]} 48. Kxf4 {[%clk 0:00:44]}  Rxa3 {[%clk 0:00:05]} 49. g5 {[%clk 0:00:41]}  Kg7 {[%clk 0:00:04]} 50. Kg4 {[%clk 0:00:41]}  Rb3 {[%clk 0:00:04]} 51. Re4 {[%clk 0:00:41]}  Ra3 {[%clk 0:00:05]} 52. f4 {[%clk 0:00:42]}  Ra1 {[%clk 0:00:04]} 53. Rd4 {[%clk 0:00:40]}  a5 {[%clk 0:00:04]} 54. bxa5 {[%clk 0:00:40]}  Rxa5 {[%clk 0:00:04]} 55. f5 {[%clk 0:00:39]}  Ra4 {[%clk 0:00:03]} 56. Rf4 {[%clk 0:00:37]}  Rxf4+ {[%clk 0:00:03]} 57. Kxf4 {[%clk 0:00:38]}  b4 {[%clk 0:00:03]} 58. Ke3 {[%clk 0:00:38]}  b3 {[%clk 0:00:04]} 59. Kd2 {[%clk 0:00:39]}  b2 {[%clk 0:00:04]} 60. Kc2 {[%clk 0:00:39]}  b1=Q+ {[%clk 0:00:05]} 61. Kxb1 {[%clk 0:00:39]} 1-0


[Site "https://www.chess.com"]

[Event "Titled Tuesday Blitz June 21 Late 2022"]
[White "Bintang, Rasyid A. Hidayat"]
[Black "Sanchez Alarcon, Juan"]
[WhiteFideId "7105355"]
[BlackFideId "3401332"]
[WhiteElo "2404"]
[BlackElo "2164"]
[Result "1-0"]
[Round "05"]
[TimeControl "180+1"]
[Date "2022.06.22"]
[WhiteClock "0:00:46"]
[BlackClock "0:01:20"]

1. d4 {[%clk 0:03:00]}  Nf6 {[%clk 0:02:57]} 2. Bf4 {[%clk 0:02:59]}  g6 {[%clk 0:02:56]} 3. Nc3 {[%clk 0:02:59]}  d5 {[%clk 0:02:55]} 4. e3 {[%clk 0:02:59]}  Bg7 {[%clk 0:02:55]} 5. h4 {[%clk 0:02:59]}  h5 {[%clk 0:02:54]} 6. Nf3 {[%clk 0:02:59]}  O-O {[%clk 0:02:53]} 7. Ne5 {[%clk 0:02:59]}  Nbd7 {[%clk 0:02:48]} 8. Qd2 {[%clk 0:02:57]}  c5 {[%clk 0:02:43]} 9. O-O-O {[%clk 0:02:41]}  c4 {[%clk 0:02:42]} 10. f3 {[%clk 0:02:39]}  a6 {[%clk 0:02:35]} 11. g4 {[%clk 0:02:38]}  b5 {[%clk 0:02:31]} 12. gxh5 {[%clk 0:02:37]}  Nxh5 {[%clk 0:02:31]} 13. Nc6 {[%clk 0:02:29]}  Qb6 {[%clk 0:02:21]} 14. Nxd5 {[%clk 0:02:28]}  Qb7 {[%clk 0:02:15]} 15. Ncxe7+ {[%clk 0:02:25]}  Kh7 {[%clk 0:02:12]} 16. e4 {[%clk 0:02:24]}  Ndf6 {[%clk 0:02:03]} 17. Nxf6+ {[%clk 0:02:10]}  Bxf6 {[%clk 0:01:59]} 18. Nd5 {[%clk 0:02:09]}  Bg7 {[%clk 0:01:59]} 19. Bh3 {[%clk 0:01:51]}  Be6 {[%clk 0:01:55]} 20. Bg4 {[%clk 0:01:26]}  Bxd5 {[%clk 0:01:49]} 21. Bxh5 {[%clk 0:01:26]}  gxh5 {[%clk 0:01:48]} 22. exd5 {[%clk 0:01:26]}  Qxd5 {[%clk 0:01:48]} 23. c3 {[%clk 0:01:12]}  a5 {[%clk 0:01:45]} 24. Rdg1 {[%clk 0:01:11]}  Rg8 {[%clk 0:01:44]} 25. Rg5 {[%clk 0:01:07]}  Qxf3 {[%clk 0:01:42]} 26. Rhg1 {[%clk 0:00:54]}  Bh6 {[%clk 0:01:37]} 27. Qc2+ {[%clk 0:00:53]}  Kh8 {[%clk 0:01:28]} 28. Rxg8+ {[%clk 0:00:50]}  Rxg8 {[%clk 0:01:24]} 29. Rxg8+ {[%clk 0:00:49]}  Kxg8 {[%clk 0:01:24]} 30. Bxh6 {[%clk 0:00:50]}  Qh1+ {[%clk 0:01:19]} 31. Qd1 {[%clk 0:00:49]}  Qxh4 {[%clk 0:01:20]} 32. Qg1+ {[%clk 0:00:46]} 1-0


[Site "https://www.chess.com"]

[Event "Titled Tuesday Blitz June 21 Late 2022"]
[White "Carbone, Diego"]
[Black "Rosenberg, Evan S"]
[WhiteFideId "3002179"]
[BlackFideId "2019299"]
[WhiteElo "2199"]
[BlackElo "2341"]
[Result "1-0"]
[Round "05"]
[TimeControl "180+1"]
[Date "2022.06.22"]
[WhiteClock "0:00:06"]
[BlackClock "0:00:06"]

1. d4 {[%clk 0:02:55]}  Nf6 {[%clk 0:02:59]} 2. c4 {[%clk 0:02:56]}  e6 {[%clk 0:02:58]} 3. Nc3 {[%clk 0:02:55]}  Bb4 {[%clk 0:02:56]} 4. Qc2 {[%clk 0:02:56]}  d5 {[%clk 0:02:56]} 5. a3 {[%clk 0:02:55]}  Bxc3+ {[%clk 0:02:54]} 6. Qxc3 {[%clk 0:02:56]}  O-O {[%clk 0:02:50]} 7. Bg5 {[%clk 0:02:54]}  h6 {[%clk 0:02:49]} 8. Bh4 {[%clk 0:02:47]}  c5 {[%clk 0:02:49]} 9. dxc5 {[%clk 0:02:38]}  g5 {[%clk 0:02:25]} 10. Bg3 {[%clk 0:02:31]}  Ne4 {[%clk 0:02:26]} 11. Qc2 {[%clk 0:02:25]}  Nc6 {[%clk 0:02:23]} 12. Nf3 {[%clk 0:01:59]}  Qa5+ {[%clk 0:02:13]} 13. Nd2 {[%clk 0:01:49]}  Nd4 {[%clk 0:02:01]} 14. Qd3 {[%clk 0:00:55]}  Qxd2+ {[%clk 0:01:46]} 15. Qxd2 {[%clk 0:00:50]}  Nxd2 {[%clk 0:01:47]} 16. Kxd2 {[%clk 0:00:48]}  Nb3+ {[%clk 0:01:47]} 17. Kc3 {[%clk 0:00:46]}  Nxa1 {[%clk 0:01:47]} 18. e3 {[%clk 0:00:45]}  e5 {[%clk 0:00:58]} 19. cxd5 {[%clk 0:00:38]}  Bf5 {[%clk 0:00:58]} 20. Bc4 {[%clk 0:00:38]}  Nc2 {[%clk 0:00:53]} 21. Bxe5 {[%clk 0:00:38]}  Rac8 {[%clk 0:00:40]} 22. c6 {[%clk 0:00:24]}  bxc6 {[%clk 0:00:36]} 23. d6 {[%clk 0:00:24]}  Rfe8 {[%clk 0:00:31]} 24. Bf6 {[%clk 0:00:24]}  Nxe3 {[%clk 0:00:15]} 25. fxe3 {[%clk 0:00:25]}  Rxe3+ {[%clk 0:00:16]} 26. Kd2 {[%clk 0:00:21]}  Ree8 {[%clk 0:00:14]} 27. Rf1 {[%clk 0:00:18]}  Bd7 {[%clk 0:00:12]} 28. Be7 {[%clk 0:00:14]}  Kg7 {[%clk 0:00:09]} 29. Rxf7+ {[%clk 0:00:09]}  Kg6 {[%clk 0:00:10]} 30. Kc3 {[%clk 0:00:10]}  Bg4 {[%clk 0:00:07]} 31. Rf6+ {[%clk 0:00:08]}  Kg7 {[%clk 0:00:06]} 32. Rf7+ {[%clk 0:00:08]}  Kg6 {[%clk 0:00:07]} 33. h3 {[%clk 0:00:09]}  Bd7 {[%clk 0:00:06]} 34. Rf6+ {[%clk 0:00:09]}  Kg7 {[%clk 0:00:06]} 35. Rf7+ {[%clk 0:00:08]}  Kg6 {[%clk 0:00:06]} 36. g4 {[%clk 0:00:08]}  Rxe7 {[%clk 0:00:05]} 37. Rxe7 {[%clk 0:00:07]}  Rd8 {[%clk 0:00:05]} 38. Kd4 {[%clk 0:00:06]}  a5 {[%clk 0:00:05]} 39. Kc5 {[%clk 0:00:06]}  a4 {[%clk 0:00:05]} 40. Be6 {[%clk 0:00:06]}  Bxe6 {[%clk 0:00:04]} 41. Rxe6+ {[%clk 0:00:07]}  Kf7 {[%clk 0:00:05]} 42. Re7+ {[%clk 0:00:08]}  Kf6 {[%clk 0:00:05]} 43. Kxc6 {[%clk 0:00:08]}  Rc8+ {[%clk 0:00:05]} 44. Rc7 {[%clk 0:00:09]}  Rd8 {[%clk 0:00:05]} 45. Rd7 {[%clk 0:00:08]}  Rc8+ {[%clk 0:00:05]} 46. Rc7 {[%clk 0:00:09]}  Rd8 {[%clk 0:00:05]} 47. Rh7 {[%clk 0:00:09]}  Kg6 {[%clk 0:00:05]} 48. Rd7 {[%clk 0:00:07]}  Rc8+ {[%clk 0:00:05]} 49. Rc7 {[%clk 0:00:08]}  Rd8 {[%clk 0:00:05]} 50. d7 {[%clk 0:00:09]}  Kf7 {[%clk 0:00:05]} 51. Rc8 {[%clk 0:00:07]}  Ke7 {[%clk 0:00:06]} 52. Rxd8 {[%clk 0:00:07]}  Kxd8 {[%clk 0:00:06]} 53. Kd6 {[%clk 0:00:06]}  h5 {[%clk 0:00:07]} 54. Ke6 {[%clk 0:00:05]}  hxg4 {[%clk 0:00:07]} 55. hxg4 {[%clk 0:00:06]}  Kc7 {[%clk 0:00:06]} 56. Ke7 {[%clk 0:00:06]} 1-0


[Site "https://www.chess.com"]

[Event "Titled Tuesday Blitz June 21 Late 2022"]
[White "Christiansen, Johan-Sebastian"]
[Black "Keymer, Vincent"]
[WhiteFideId "1512668"]
[BlackFideId "12940690"]
[WhiteElo "2513"]
[BlackElo "2548"]
[Result "1-0"]
[Round "05"]
[TimeControl "180+1"]
[Date "2022.06.21"]
[WhiteClock "0:00:10"]
[BlackClock "0:00:07"]

1. e4 {[%clk 0:03:00]}  c5 {[%clk 0:02:57]} 2. Nf3 {[%clk 0:03:00]}  d6 {[%clk 0:02:57]} 3. Nc3 {[%clk 0:02:56]}  Nf6 {[%clk 0:02:57]} 4. d4 {[%clk 0:02:54]}  cxd4 {[%clk 0:02:57]} 5. Nxd4 {[%clk 0:02:55]}  a6 {[%clk 0:02:56]} 6. Bg5 {[%clk 0:02:55]}  Nbd7 {[%clk 0:02:50]} 7. Qe2 {[%clk 0:02:55]}  h6 {[%clk 0:02:35]} 8. Bh4 {[%clk 0:02:55]}  e6 {[%clk 0:02:34]} 9. f4 {[%clk 0:02:53]}  Qc7 {[%clk 0:02:33]} 10. O-O-O {[%clk 0:02:52]}  Be7 {[%clk 0:02:33]} 11. Bg3 {[%clk 0:02:14]}  Nb6 {[%clk 0:01:43]} 12. e5 {[%clk 0:02:09]}  Nfd5 {[%clk 0:01:42]} 13. Ne4 {[%clk 0:02:05]}  O-O {[%clk 0:01:22]} 14. Kb1 {[%clk 0:01:51]}  Nxf4 {[%clk 0:00:28]} 15. Bxf4 {[%clk 0:01:41]}  dxe5 {[%clk 0:00:29]} 16. Bg3 {[%clk 0:00:48]}  f5 {[%clk 0:00:29]} 17. Nf3 {[%clk 0:00:48]}  fxe4 {[%clk 0:00:29]} 18. Nxe5 {[%clk 0:00:49]}  Rd8 {[%clk 0:00:13]} 19. Re1 {[%clk 0:00:38]}  Bd6 {[%clk 0:00:11]} 20. Qxe4 {[%clk 0:00:37]}  Nd5 {[%clk 0:00:10]} 21. Bd3 {[%clk 0:00:37]}  Nf6 {[%clk 0:00:11]} 22. Qg6 {[%clk 0:00:35]}  Bd7 {[%clk 0:00:11]} 23. Qf7+ {[%clk 0:00:33]}  Kh8 {[%clk 0:00:11]} 24. Ng6+ {[%clk 0:00:33]}  Kh7 {[%clk 0:00:11]} 25. Nf8+ {[%clk 0:00:14]}  Kh8 {[%clk 0:00:12]} 26. Ng6+ {[%clk 0:00:10]}  Kh7 {[%clk 0:00:12]} 27. Rhf1 {[%clk 0:00:11]}  Bxg3 {[%clk 0:00:07]} 28. Rxf6 {[%clk 0:00:11]}  Be8 {[%clk 0:00:07]} 29. Ne7+ {[%clk 0:00:10]}  Rxd3 {[%clk 0:00:07]} 30. Qg8# {[%clk 0:00:10]} 1-0


[Site "https://www.chess.com"]

[Event "Titled Tuesday Blitz June 21 Late 2022"]
[White "Clarke, Brandon G I"]
[Black "Ladan, Nicholas"]
[WhiteFideId "400319"]
[BlackFideId "30918855"]
[WhiteElo "2781"]
[BlackElo "2527"]
[Result "1-0"]
[Round "05"]
[TimeControl "180+1"]
[Date "2022.06.22"]
[WhiteClock "0:01:14"]
[BlackClock "0:00:48"]

1. e4 {[%clk 0:03:00]}  e5 {[%clk 0:02:58]} 2. Nf3 {[%clk 0:03:01]}  Nc6 {[%clk 0:02:59]} 3. Bc4 {[%clk 0:03:01]}  Nf6 {[%clk 0:02:58]} 4. Ng5 {[%clk 0:03:01]}  d5 {[%clk 0:02:58]} 5. exd5 {[%clk 0:03:02]}  Na5 {[%clk 0:02:58]} 6. Bb5+ {[%clk 0:03:03]}  c6 {[%clk 0:02:58]} 7. dxc6 {[%clk 0:03:04]}  bxc6 {[%clk 0:02:59]} 8. Bd3 {[%clk 0:03:04]}  Nd5 {[%clk 0:02:58]} 9. Nf3 {[%clk 0:03:04]}  Bd6 {[%clk 0:02:58]} 10. O-O {[%clk 0:03:05]}  O-O {[%clk 0:02:57]} 11. Re1 {[%clk 0:03:05]}  f5 {[%clk 0:02:58]} 12. Nxe5 {[%clk 0:03:05]}  Qf6 {[%clk 0:02:58]} 13. Nf3 {[%clk 0:03:06]}  g5 {[%clk 0:02:59]} 14. c4 {[%clk 0:03:06]}  Nf4 {[%clk 0:02:59]} 15. Bf1 {[%clk 0:03:07]}  g4 {[%clk 0:03:00]} 16. d4 {[%clk 0:03:06]}  gxf3 {[%clk 0:03:00]} 17. Qxf3 {[%clk 0:03:07]}  Ne6 {[%clk 0:02:57]} 18. Qc3 {[%clk 0:03:06]}  Bc7 {[%clk 0:02:50]} 19. b4 {[%clk 0:02:55]}  Nb7 {[%clk 0:02:48]} 20. Bb2 {[%clk 0:02:53]}  a5 {[%clk 0:02:39]} 21. a3 {[%clk 0:02:37]}  axb4 {[%clk 0:02:36]} 22. axb4 {[%clk 0:02:38]}  Rxa1 {[%clk 0:02:36]} 23. Bxa1 {[%clk 0:02:39]}  Nd6 {[%clk 0:02:35]} 24. Nd2 {[%clk 0:02:37]}  Rd8 {[%clk 0:02:19]} 25. b5 {[%clk 0:02:30]}  cxb5 {[%clk 0:02:10]} 26. c5 {[%clk 0:02:30]}  Ne4 {[%clk 0:01:47]} 27. Nxe4 {[%clk 0:02:30]}  fxe4 {[%clk 0:01:47]} 28. Rxe4 {[%clk 0:02:30]}  Ng5 {[%clk 0:01:45]} 29. Re3 {[%clk 0:02:13]}  Bb7 {[%clk 0:01:18]} 30. Bxb5 {[%clk 0:01:57]}  Qf4 {[%clk 0:01:10]} 31. Rg3 {[%clk 0:01:31]}  Rf8 {[%clk 0:01:03]} 32. Bc4+ {[%clk 0:01:19]}  Kg7 {[%clk 0:00:48]} 33. d5+ {[%clk 0:01:18]}  Kh6 {[%clk 0:00:49]} 34. Qg7+ {[%clk 0:01:17]}  Kh5 {[%clk 0:00:48]} 35. Be2+ {[%clk 0:01:14]} 1-0


[Site "https://www.chess.com"]

[Event "Titled Tuesday Blitz June 21 Late 2022"]
[White "Culum, Sanjin"]
[Black "Johnson, Ben"]
[WhiteFideId "14420937"]
[BlackFideId "2010917"]
[WhiteElo "2013"]
[BlackElo "2169"]
[Result "1-0"]
[Round "05"]
[TimeControl "180+1"]
[Date "2022.06.22"]
[WhiteClock "0:00:09"]
[BlackClock "0:00:14"]

1. Nf3 {[%clk 0:03:00]}  d5 {[%clk 0:02:57]} 2. d4 {[%clk 0:02:59]}  Nf6 {[%clk 0:02:56]} 3. g3 {[%clk 0:02:59]}  e6 {[%clk 0:02:49]} 4. Bg2 {[%clk 0:02:59]}  c5 {[%clk 0:02:48]} 5. dxc5 {[%clk 0:02:55]}  Bxc5 {[%clk 0:02:46]} 6. O-O {[%clk 0:02:56]}  O-O {[%clk 0:02:46]} 7. c4 {[%clk 0:02:55]}  dxc4 {[%clk 0:02:41]} 8. Qxd8 {[%clk 0:02:54]}  Rxd8 {[%clk 0:02:40]} 9. Nbd2 {[%clk 0:02:55]}  c3 {[%clk 0:02:37]} 10. bxc3 {[%clk 0:02:56]}  Nc6 {[%clk 0:02:34]} 11. Nb3 {[%clk 0:02:45]}  Be7 {[%clk 0:02:23]} 12. Nfd4 {[%clk 0:02:41]}  Nxd4 {[%clk 0:02:17]} 13. cxd4 {[%clk 0:02:12]}  Nd5 {[%clk 0:02:17]} 14. e4 {[%clk 0:02:08]}  Nb4 {[%clk 0:02:10]} 15. Bb2 {[%clk 0:01:25]}  Nd3 {[%clk 0:01:27]} 16. Bc3 {[%clk 0:01:25]}  Bb4 {[%clk 0:01:27]} 17. Bxb4 {[%clk 0:01:20]}  Nxb4 {[%clk 0:01:28]} 18. Rfd1 {[%clk 0:01:14]}  b6 {[%clk 0:01:19]} 19. a3 {[%clk 0:01:01]}  Na6 {[%clk 0:01:13]} 20. a4 {[%clk 0:00:28]}  Bb7 {[%clk 0:01:09]} 21. a5 {[%clk 0:00:29]}  Kf8 {[%clk 0:01:04]} 22. axb6 {[%clk 0:00:27]}  axb6 {[%clk 0:01:05]} 23. Rab1 {[%clk 0:00:27]}  Nc7 {[%clk 0:00:35]} 24. Nc1 {[%clk 0:00:19]}  b5 {[%clk 0:00:35]} 25. Ne2 {[%clk 0:00:17]}  f5 {[%clk 0:00:31]} 26. Nc3 {[%clk 0:00:10]}  Ra4 {[%clk 0:00:22]} 27. Nxa4 {[%clk 0:00:10]}  Bc6 {[%clk 0:00:14]} 28. Nc5 {[%clk 0:00:09]} 1-0


[Site "https://www.chess.com"]

[Event "Titled Tuesday Blitz June 21 Late 2022"]
[White "Diaz Rosas, Julio Cesar"]
[Black "De La Colina, Nicolas"]
[WhiteFideId "5105099"]
[BlackFideId "30946921"]
[WhiteElo "2649"]
[BlackElo "2524"]
[Result "1-0"]
[Round "05"]
[TimeControl "180+1"]
[Date "2022.06.22"]
[WhiteClock "0:00:50"]
[BlackClock "0:00:05"]

1. d4 {[%clk 0:03:00]}  f5 {[%clk 0:02:55]} 2. c4 {[%clk 0:02:59]}  Nf6 {[%clk 0:02:55]} 3. Nc3 {[%clk 0:02:59]}  g6 {[%clk 0:02:55]} 4. h4 {[%clk 0:03:00]}  d6 {[%clk 0:02:53]} 5. h5 {[%clk 0:02:58]}  Nxh5 {[%clk 0:02:53]} 6. e4 {[%clk 0:02:57]}  Nf6 {[%clk 0:02:52]} 7. Bd3 {[%clk 0:02:57]}  e6 {[%clk 0:02:51]} 8. Nf3 {[%clk 0:02:52]}  Nc6 {[%clk 0:02:43]} 9. Qe2 {[%clk 0:02:48]}  Be7 {[%clk 0:02:39]} 10. Bh6 {[%clk 0:02:42]}  Rg8 {[%clk 0:02:14]} 11. O-O-O {[%clk 0:02:26]}  Bd7 {[%clk 0:01:53]} 12. a3 {[%clk 0:02:13]}  Ng4 {[%clk 0:01:29]} 13. exf5 {[%clk 0:02:05]}  gxf5 {[%clk 0:01:01]} 14. Bf4 {[%clk 0:01:55]}  Nf6 {[%clk 0:00:32]} 15. d5 {[%clk 0:01:45]}  e5 {[%clk 0:00:33]} 16. dxc6 {[%clk 0:01:45]}  bxc6 {[%clk 0:00:33]} 17. Nxe5 {[%clk 0:01:33]}  dxe5 {[%clk 0:00:30]} 18. Bxe5 {[%clk 0:01:34]}  Kf8 {[%clk 0:00:26]} 19. Bxf5 {[%clk 0:01:29]}  Bxf5 {[%clk 0:00:17]} 20. Rxd8+ {[%clk 0:01:30]}  Rxd8 {[%clk 0:00:18]} 21. Qf3 {[%clk 0:01:04]}  Bg4 {[%clk 0:00:04]} 22. Qf4 {[%clk 0:00:59]}  Rg6 {[%clk 0:00:05]} 23. Rxh7 {[%clk 0:00:51]}  Kg8 {[%clk 0:00:05]} 24. Rxe7 {[%clk 0:00:50]} 1-0


[Site "https://www.chess.com"]